[Event "3rd Caraca Open 2022"]
[Site "Catas Altas"]
[Date "2022.07.09"]
[Round "3.3"]
[White "Monteiro, Daniel Zotelli"]
[Black "Diamant, Andre"]
[Result "0-1"]
[ECO "B33"]
[WhiteElo "1642"]
[BlackElo "2538"]
[Annotator "TA"]
[PlyCount "68"]
[EventDate "2022.06.28"]
[EventCountry "BRA"]
[SourceTitle "playchess.com"]
[Source "ChessBase"]
[SourceQuality "1"]
[TimeControl "900+5"]

{[%evp 20,68,60,39,72,39,34,-53,-37,-43,4,0,0,-81,-81,-97,-106,-99,-77,-427,-450,-468,-466,-479,-481,-475,-475,-472,-462,-587,-554,-581,-584,-575,-573,-558,-551,-768,-772,-826,-761,-864,-845,-803,-786,-739,-725,-1245,-1054,-2272,-1521]} 1. e4 {[%emt 0:00:02]} c5 {[%emt 0:00:01]} 2. Nf3 {[%emt 0:00:03]} Nc6 {[%emt 0:00:01]} 3. d4 {[%emt 0:00:04]} cxd4 {[%emt 0:00:01]} 4. Nxd4 {[%emt 0:00:02]} Nf6 {[%emt 0:00:01]} 5. Nc3 {[%emt 0:00:01]} e5 {[%emt 0:00:01]} 6. Ndb5 {[%emt 0:00:09]} d6 {[%emt 0:00:01]} 7. Bg5 {[%emt 0:00:25]} a6 {[%emt 0:00:01]} 8. Bxf6 {[%emt 0:00:24]} gxf6 {[%emt 0:00:02]} 9. Na3 {[%emt 0:00:07]} b5 {[%emt 0:00:10]} 10. Nd5 {[%emt 0:00:10]} Bg7 {[%emt 0:00:19]} 11. c3 {[%emt 0:00:49]} O-O {[%emt 0:01:12] B33: Sicilian: Pelikan and Sveshnikov Variations.} 12. g4 {[%emt 0:00:40] Inhibits f5.} Ne7 {[%emt 0:00:08]} 13. Nc2 {[%emt 0:00:43]} (13. Nxe7+ $14 Qxe7 14. Nc2) 13... Nxd5 $15 {[%emt 0:00:04] Black is slightly better.} 14. Qxd5 {[%emt 0:00:07]} Be6 {[%emt 0:00:52]} (14... Bxg4 $15 {was preferrable.} 15. Rg1 Be6) 15. Qd2 {[%emt 0:00:20] [#]} d5 $146 {[%emt 0:00:21]} ({Predecessor:} 15... Qb6 16. O-O-O Bxa2 17. Rg1 Be6 18. Bh3 Kh8 19. f4 Rad8 20. f5 Bb3 21. Bg2 b4 22. Nxb4 Bxd1 23. Rxd1 {0-1 (52) Nezbailo,D (2039)-Edvardsen,I (1938) St Petersburg 2006}) 16. f3 {[%emt 0:00:25]} (16. exd5 $11 {remains equal.} Qxd5 17. Qxd5 Bxd5 18. Rg1) 16... dxe4 $17 {[%emt 0:00:14]} 17. Qxd8 {[%emt 0:00:15]} Rfxd8 {[%emt 0:00:36]} 18. fxe4 {[%emt 0:00:07]} Bh6 {[%emt 0:02:04] Black is more active.} 19. Rd1 {[%emt 0:01:41][%mdl 8192] Prevents Rd2. Loses the game.} (19. Rg1 $17 {is more resistant.}) 19... Rxd1+ $19 {[%emt 0:00:36] Black is clearly winning.} 20. Kxd1 {[%emt 0:00:02]} Rd8+ {[%emt 0:02:23]} 21. Ke1 {[%emt 0:00:09]} Rd2 {[%emt 0:00:17]} 22. Nb4 {[%emt 0:00:24]} Rxb2 {[%emt 0:00:10]} 23. Nxa6 {[%emt 0:01:12]} Bd2+ {[%emt 0:00:20]} 24. Ke2 {[%emt 0:01:19]} Bxg4+ {[%emt 0:00:33]} 25. Kd3 {[%emt 0:00:02]} Be6 {[%emt 0:01:41][%csl Gb5][%cal Re6c4] [#]} 26. Ke2 {[%emt 0:01:49]} Bxc3+ {[%emt 0:00:06] A strong pair of Bishops.} 27. Kf3 {[%emt 0:00:57]} f5 {[%emt 0:01:30] Threatens to win with ...fxe4+.} 28. Nc5 {[%emt 0:01:19]} Bxa2 {[%emt 0:00:53]} 29. Rg1+ {[%emt 0:00:48]} Kf8 {[%emt 0:00:11] [#] Hoping for ...Bd4.} 30. Rg2 {[%emt 0:00:53]} fxe4+ {[%emt 0:00:54]} 31. Nxe4 {[%emt 0:00:38]} Rxg2 {[%emt 0:00:03]} 32. Bxg2 {[%emt 0:00:18]} Bd4 {[%emt 0:00:10]} 33. Ke2 {[%emt 0:00:26]} Bd5 {[%emt 0:00:18] And now ...f5 would win.} 34. Kd3 {[%emt 0:00:12]} f5 {[%emt 0:00:10] Weighted Error Value: White=0.99/Black=0.04 (flawless)} 0-1

[Event "3rd Caraca Open 2022"]
[Site "Catas Altas"]
[Date "2022.07.09"]
[Round "3.5"]
[White "Gomes, Luiz Alexandre de So"]
[Black "Ribeiro, Braulio Silva"]
[Result "1-0"]
[ECO "C41"]
[WhiteElo "2335"]
[BlackElo "1911"]
[Annotator "RC"]
[PlyCount "57"]
[EventDate "2022.06.28"]
[EventCountry "BRA"]
[SourceTitle "playchess.com"]
[Source "ChessBase"]
[SourceQuality "1"]
[TimeControl "900+5"]

1. e4 {[%emt 0:00:05]} e5 {[%emt 0:00:04]} 2. Nf3 {[%emt 0:00:01]} d6 {[%emt 0:00:07]} 3. d4 {[%emt 0:00:01]} exd4 {[%emt 0:00:03]} 4. Nxd4 {[%emt 0:00:02]} Nf6 {[%emt 0:00:02]} 5. Nc3 {[%emt 0:00:01]} Be7 {[%emt 0:00:04]} 6. Be2 {[%emt 0:00:51]} O-O {[%emt 0:00:10]} 7. O-O {[%emt 0:00:05]} Re8 {[%emt 0:00:17]} 8. Re1 {[%emt 0:00:53]} Nbd7 {[%emt 0:00:48]} 9. Bf1 {[%emt 0:00:22]} Nc5 {[%emt 0:00:57]} 10. f3 {[%emt 0:00:21]} Ne6 {[%emt 0:01:00]} 11. Nf5 {[%emt 0:00:11]} Bf8 {[%emt 0:00:01]} 12. Be3 {[%emt 0:00:16]} g6 {[%emt 0:00:19]} 13. Nh6+ {[%emt 0:00:17]} Bxh6 {[%emt 0:01:46]} 14. Bxh6 {[%emt 0:00:05]} Nh5 {[%emt 0:01:12]} 15. Qd2 {[%emt 0:00:25]} Bd7 {[%emt 0:01:04]} 16. Rad1 {[%emt 0:00:23]} Qf6 {[%emt 0:01:07]} 17. Nd5 {[%emt 0:03:54]} Qxb2 {[%emt 0:01:38]} 18. g4 {[%emt 0:00:19]} c6 {[%emt 0:00:47]} 19. Nc3 {[%emt 0:00:45]} Nf6 {[%emt 0:01:02]} 20. Rb1 {[%emt 0:00:02]} Qa3 {[%emt 0:00:22]} 21. Be3 {[%emt 0:01:10]} d5 {[%emt 0:01:28]} 22. Rxb7 {[%emt 0:02:43]} d4 {[%emt 0:00:54]} 23. Bxd4 {[%emt 0:00:14]} Nxd4 {[%emt 0:00:01]} 24. Qxd4 {[%emt 0:00:02]} Bc8 {[%emt 0:00:53]} 25. Rc7 {[%emt 0:00:52]} Re6 {[%emt 0:00:37]} 26. Bc4 {[%emt 0:00:07]} Qd6 {[%emt 0:00:19]} 27. Qxd6 {[%emt 0:00:10]} Rxd6 {[%emt 0:00:04]} 28. e5 {[%emt 0:00:01]} Rd4 {[%emt 0:00:11]} 29. Bxf7+ {[%emt 0:00:03]} 1-0

[Event "3rd Caraca Open 2022"]
[Site "Catas Altas"]
[Date "2022.07.09"]
[Round "4.1"]
[White "Mareco, Sandro"]
[Black "Gomes, Luiz Alexandre de So"]
[Result "0-1"]
[ECO "E18"]
[WhiteElo "2657"]
[BlackElo "2335"]
[Annotator "TA"]
[PlyCount "70"]
[EventDate "2022.06.28"]
[EventCountry "BRA"]
[SourceTitle "playchess.com"]
[Source "ChessBase"]
[SourceQuality "1"]
[TimeControl "900+5"]

{[%evp 17,70,24,64,58,68,64,121,125,125,57,60,62,58,50,63,53,56,53,104,72,95,55,41,43,76,90,94,89,116,65,207,125,122,117,123,123,183,167,149,47,39,0,0,1,229,230,347,352,402,365,29984,447,29992,29993,29999]} 1. Nf3 {[%emt 0:00:05]} Nf6 {[%emt 0:00:05]} 2. c4 {[%emt 0:00:05]} e6 {[%emt 0:00:30]} 3. g3 {[%emt 0:00:01]} d5 {[%emt 0:00:01]} 4. Bg2 {[%emt 0:00:02]} Be7 {[%emt 0:00:02]} 5. O-O {[%emt 0:00:03]} O-O {[%emt 0:00:02]} 6. d4 {[%emt 0:00:01]} b6 {[%emt 0:00:19]} 7. cxd5 {[%emt 0:00:03]} exd5 {[%emt 0:00:03]} 8. Nc3 {[%emt 0:00:02]} Bb7 {[%emt 0:00:09]} 9. Bf4 {[%emt 0:00:04]} a6 {[%emt 0:00:45]} 10. Ne5 {[%emt 0:00:09] E18: Queen's Indian: Old Main Line (4 g3 Bb7 5 Bg2 Be7 6 0-0 0-0 7 Nc3).} Nbd7 {[%emt 0:00:11]} 11. Qb3 {[%emt 0:00:07]} Nxe5 {[%emt 0:01:08]} (11... c6 $14) 12. dxe5 $16 {[%emt 0:00:38] White is better.} Ne4 {[%emt 0:00:20] [#]} 13. Rfd1 $146 {[%emt 0:00:12]} ({White should play} 13. Nxe4 $16 dxe4 14. Rac1) ({Predecessor:} 13. Nxe4 dxe4 14. Rfd1 Qc8 15. Qc2 c5 16. Bxe4 Bxe4 17. Qxe4 Qe6 18. Rd5 g5 19. Be3 {1-0 (28) Grabarczyk,M (2371)-Kozlowski,M (2047) Katowice 2021}) 13... Nc5 $14 {[%emt 0:00:58]} 14. Qc2 {[%emt 0:01:07][%cal Rc3d5]} c6 {[%emt 0:00:02]} 15. Be3 {[%emt 0:00:18]} Qc7 {[%emt 0:00:24]} 16. f4 {[%emt 0:00:08]} a5 {[%emt 0:00:13]} 17. Rac1 {[%emt 0:00:22]} Rfe8 {[%emt 0:00:04]} (17... Rfd8 $14) 18. Bf2 {[%emt 0:00:02]} Rad8 {[%emt 0:00:10]} 19. e4 {[%emt 0:00:22]} dxe4 {[%emt 0:04:03]} 20. Nxe4 {[%emt 0:00:02]} Rxd1+ {[%emt 0:00:02]} 21. Rxd1 {[%emt 0:00:01]} Nxe4 {[%emt 0:00:02]} 22. Bxe4 {[%emt 0:00:02]} g6 {[%emt 0:00:01] [#]} 23. Qb3 {[%emt 0:00:07]} (23. e6 $1 $16 {Rd7 is the strong threat.} Rd8 24. exf7+ Kxf7 25. Rxd8 Bxd8 26. Qc4+ Kg7 27. Qd4+ Bf6 28. Qxb6 Qxb6 29. Bxb6) 23... c5 {[%emt 0:00:12]} (23... Rd8 $14) 24. Qa4 {[%emt 0:00:02]} b5 {[%emt 0:03:48]} 25. Qxb5 {[%emt 0:00:02]} Rb8 {[%emt 0:00:01]} 26. Bxb7 {[%emt 0:00:06]} Rxb7 {[%emt 0:00:07]} (26... Qxb7 $16 {was worth a try.} 27. Qd7 (27. Qxa5 Qxb2 28. Qa4 Qb6 $14) 27... a4) 27. Qe8+ $18 {[%emt 0:00:06]} Kg7 {[%emt 0:00:03]} 28. b3 {[%emt 0:00:02]} (28. Be1 $16 c4 29. Bc3 Qb6+ 30. Kg2) 28... c4 $1 $14 {[%emt 0:00:17]} 29. Rc1 {[%emt 0:01:11]} (29. e6 $5 fxe6 30. Rc1 $16) 29... c3 {[%emt 0:00:10]} 30. e6 {[%emt 0:00:02]} fxe6 {[%emt 0:00:59]} (30... Bf6 $11 {and Black has nothing to worry.}) 31. Bd4+ $18 {[%emt 0:00:01]} Kh6 {[%emt 0:00:01]} (31... Bf6 $142 32. Bxf6+ Kxf6) 32. Rxc3 {[%emt 0:00:30]} Qd6 {[%emt 0:00:20]} 33. Qh8 {[%emt 0:00:02] [#] Intending Qg7+ and mate.} Bf8 {[%emt 0:00:16] Inhibits Qg7+.} (33... e5 $18 34. Qxe5 (34. Bxe5 Qd1+ 35. Kg2 Qe2+ 36. Kh3 Qh5+ 37. Kg2 Qe2+ 38. Kh3 Qh5+ 39. Kg2 Qe2+ $11) 34... Qxe5 35. Bxe5 Kh5) 34. Qf6 {[%emt 0:00:10]} (34. g4 $142 Qxf4 35. Rh3+ (35. Be3 Bc5 $14) 35... Kg5 36. Be3 Qxe3+ 37. Rxe3 Bd6 38. Rxe6 Rd7 39. Qf6+ Kh6 40. Rxd6) 34... Rb5 {[%emt 0:00:19]} (34... Qe7 $18 35. g4 Qxf6 36. Bxf6 g5) 35. g4 {[%emt 0:01:47]} e5 {[%emt 0:00:25][%mdl 32768] Weighted Error Value: White=0.44/Black=0.82. Loss on time!?} 0-1

[Event "3rd Caraca Open 2022"]
[Site "Catas Altas"]
[Date "2022.07.09"]
[Round "4.2"]
[White "Diamant, Andre"]
[Black "Supi, Luis Paulo"]
[Result "1/2-1/2"]
[ECO "B40"]
[WhiteElo "2538"]
[BlackElo "2603"]
[Annotator "TA"]
[PlyCount "48"]
[EventDate "2022.06.28"]
[EventCountry "BRA"]
[SourceTitle "playchess.com"]
[Source "ChessBase"]
[SourceQuality "1"]
[TimeControl "900+5"]

{[%evp 9,48,17,10,12,20,13,28,22,20,17,41,13,33,17,14,7,14,16,22,21,24,16,24,11,17,6,11,6,4,0,29,23,18,22,22,22,25,41,33,24,26]} 1. e4 {[%emt 0:00:01]} c5 {[%emt 0:00:01]} 2. Nf3 {[%emt 0:00:02][%cal Bg1f3,Bf3d4,Bd4b3][%mdl 32]} e6 {[%emt 0:00:11]} 3. g3 {[%emt 0:00:09]} d5 {[%emt 0:00:31]} 4. exd5 {[%emt 0:00:05]} exd5 {[%emt 0:00:01]} 5. d4 {[%emt 0:00:45]} cxd4 {[%emt 0:01:11]} 6. Nxd4 {[%emt 0:00:19] B40: Sicilian: 2...e6, Unusual lines.} Nc6 {[%emt 0:00:02]} 7. Bg2 {[%emt 0:00:51] Active counter play!} Bc5 {[%emt 0:00:17]} 8. Nb3 {[%emt 0:00:33][%csl LRc5,LRd5]} Qe7+ {[%emt 0:01:10]} 9. Qe2 {[%emt 0:00:19]} Qxe2+ {[%emt 0:00:20]} 10. Kxe2 {[%emt 0:00:01]} Bb6 {[%emt 0:00:01]} (10... Bg4+ $2 11. f3 $18) 11. Nc3 {[%emt 0:01:09] [#]} Bg4+ $146 {[%emt 0:00:06]} ({Predecessor:} 11... Nf6 12. Bg5 Bg4+ 13. f3 Be6 14. Na4 Bc7 15. Nac5 O-O-O 16. Nxe6 fxe6 17. Bh3 Rhe8 {½-½ (56) Trepat Herranz,J (2336)-Gonzalez Perez,A (2466) Vallfogona de Balaguer 2013}) 12. Bf3 {[%emt 0:00:42]} Bxf3+ {[%emt 0:00:02]} 13. Kxf3 {[%emt 0:00:01]} O-O-O {[%emt 0:01:00]} 14. Bf4 {[%emt 0:00:55]} h6 {[%emt 0:00:41]} 15. h4 {[%emt 0:00:28]} Nf6 {[%emt 0:00:01]} 16. Rad1 {[%emt 0:00:17]} Rhe8 {[%emt 0:01:06]} 17. Rhe1 {[%emt 0:00:56]} Re6 {[%emt 0:00:15]} 18. Kg2 {[%emt 0:02:22]} a6 {[%emt 0:00:48]} 19. Na4 {[%emt 0:00:21][%cal Ra4b6] [#]} Ba7 {[%emt 0:00:22]} 20. Nac5 {[%emt 0:00:01]} Ree8 {[%emt 0:00:22]} 21. c3 {[%emt 0:01:13]} Rxe1 {[%emt 0:02:20]} 22. Rxe1 {[%emt 0:00:02]} Re8 {[%emt 0:06:07]} 23. Rxe8+ Nxe8 24. g4 {[%emt 0:05:33]} Nf6 {[%emt 0:00:10] Weighted Error Value: White=0.02 (flawless) /Black=0.02 (flawless)} 1/2-1/2

[Event "3rd Caraca Open 2022"]
[Site "Catas Altas"]
[Date "2022.07.09"]
[Round "4.5"]
[White "Crespo De Oliveira, Lucas"]
[Black "Goncalves, Andre Luiz Sampaio"]
[Result "1-0"]
[ECO "A01"]
[WhiteElo "2197"]
[BlackElo "1929"]
[Annotator "RC"]
[PlyCount "62"]
[EventDate "2022.06.28"]
[EventCountry "BRA"]
[SourceTitle "playchess.com"]
[Source "ChessBase"]
[SourceQuality "1"]
[TimeControl "900+5"]

1. b3 {[%emt 0:00:15]} Nf6 {[%emt 0:00:06]} 2. Bb2 {[%emt 0:00:02]} g6 {[%emt 0:00:05]} 3. Bxf6 {[%emt 0:00:02]} exf6 {[%emt 0:00:02]} 4. c4 {[%emt 0:00:03]} Bg7 {[%emt 0:00:02]} 5. Nc3 {[%emt 0:00:02]} O-O {[%emt 0:00:05]} 6. g3 {[%emt 0:00:02]} c6 {[%emt 0:00:09]} 7. e3 {[%emt 0:00:04]} f5 {[%emt 0:00:10]} 8. Nge2 {[%emt 0:00:09]} d5 {[%emt 0:00:17]} 9. cxd5 {[%emt 0:00:05]} cxd5 {[%emt 0:00:02]} 10. d4 {[%emt 0:00:05]} Qa5 {[%emt 0:00:38]} 11. Qd2 {[%emt 0:00:12]} Be6 {[%emt 0:00:20]} 12. Bg2 {[%emt 0:00:03]} Rd8 {[%emt 0:00:21]} 13. O-O {[%emt 0:00:14]} Nd7 {[%emt 0:00:05]} 14. Rfc1 {[%emt 0:00:46]} Rac8 {[%emt 0:00:02]} 15. Rc2 {[%emt 0:00:18]} Nf6 {[%emt 0:00:21]} 16. Rac1 {[%emt 0:01:41]} Qa6 {[%emt 0:00:41]} 17. Nxd5 {[%emt 0:01:19]} Rxc2 {[%emt 0:00:13]} 18. Nxf6+ {[%emt 0:00:08]} Bxf6 {[%emt 0:00:02]} 19. Rxc2 {[%emt 0:00:17]} Rc8 {[%emt 0:00:31]} 20. Nf4 {[%emt 0:01:30]} b5 {[%emt 0:05:41]} 21. h4 {[%emt 0:01:00]} Rxc2 {[%emt 0:01:20]} 22. Qxc2 {[%emt 0:00:02]} b4 {[%emt 0:00:17]} 23. Bd5 {[%emt 0:01:21]} Qd6 {[%emt 0:01:49]} 24. Bxe6 {[%emt 0:00:41]} fxe6 {[%emt 0:00:03]} 25. Qc8+ {[%emt 0:00:05]} Kf7 {[%emt 0:00:20]} 26. Qb7+ {[%emt 0:00:15]} Qe7 {[%emt 0:00:21]} 27. Qc6 {[%emt 0:00:33]} g5 {[%emt 0:00:38]} 28. hxg5 {[%emt 0:00:08]} Bxg5 {[%emt 0:00:02]} 29. Nd3 {[%emt 0:00:21]} Bf6 {[%emt 0:00:31]} 30. d5 {[%emt 0:00:44]} exd5 {[%emt 0:00:39]} 31. Qxd5+ {[%emt 0:00:02]} Kg6 {[%emt 0:00:32]} 1-0

[Event "3rd Caraca Open 2022"]
[Site "Catas Altas"]
[Date "2022.07.10"]
[Round "5.1"]
[White "Gazel, Frederico"]
[Black "Mareco, Sandro"]
[Result "0-1"]
[ECO "D02"]
[WhiteElo "2300"]
[BlackElo "2657"]
[Annotator "TA"]
[PlyCount "72"]
[EventDate "2022.06.28"]
[EventCountry "BRA"]
[SourceTitle "playchess.com"]
[Source "ChessBase"]
[SourceQuality "1"]
[TimeControl "900+5"]

{[%evp 12,72,0,-41,-6,0,13,0,18,17,33,22,43,25,56,32,54,43,49,37,33,-20,1,0,-2,-47,-45,-66,-56,-74,-31,-59,-41,-103,-66,-350,-346,-778,-357,-334,-368,-318,-222,-477,-425,-380,-381,-597,-156,-142,-132,-179,-182,-139,-127,-1331,-1331,-29989,-29990,-29990,-29991,-29992,-29993]} 1. d4 {[%emt 0:00:09]} d5 {[%emt 0:00:01]} 2. Nf3 {[%emt 0:00:02]} Nf6 {[%emt 0:00:39]} 3. Bf4 {[%emt 0:00:04]} c5 {[%emt 0:00:29]} 4. e3 {[%emt 0:00:09]} Nc6 {[%emt 0:00:02]} 5. c3 {[%emt 0:00:09]} Qb6 {[%emt 0:00:24]} 6. Qb3 {[%emt 0:00:05]} c4 {[%emt 0:00:14]} 7. Qc2 {[%emt 0:00:01] The main line 7.Qc2 scores better than 7.Qxb6.} g6 {[%emt 0:00:03] D02: 1 d4 d5 2 Nf3 sidelines, including 2...Nf6 3 g3 and 2...Nf6 3 Bf4.} (7... Bf5 $5 {[%cal Rf5c2]} 8. Qc1 (8. Qxf5 $2 Qxb2 9. Nbd2 Qxa1+ $19) 8... Nh5 $15) 8. h3 {[%emt 0:00:13]} Bf5 {[%emt 0:00:08]} 9. Qc1 {[%emt 0:00:02]} Rc8 {[%emt 0:00:37] The position is equal.} 10. Nbd2 {[%emt 0:00:11] [#]} h6 $146 {[%emt 0:13:18]} ({Predecessor:} 10... Bg7 11. b3 cxb3 12. axb3 Nb4 13. Nh4 Nc2+ 14. Kd1 Nxa1 15. Qxa1 Ne4 16. Nxe4 Qxb3+ {½-½ (50) Mezei,C (2033)-Nadasi,B (2129) Hungary 2018}) 11. Be2 {[%emt 0:00:31]} g5 {[%emt 0:00:00]} 12. Bg3 {[%emt 0:00:17]} Qd8 {[%emt 0:00:00]} 13. Ne5 {[%emt 0:00:12]} e6 {[%emt 0:00:00]} 14. Nxc6 {[%emt 0:00:18]} Rxc6 {[%emt 0:00:00]} 15. O-O {[%emt 0:00:12]} a6 {[%emt 0:00:00]} 16. Bd1 {[%emt 0:02:32]} (16. b3 $14) 16... Rg8 {[%emt 0:00:00]} 17. Bc2 {[%emt 0:00:11]} h5 {[%emt 0:00:00]} 18. Re1 {[%emt 0:00:04]} h4 {[%emt 0:00:00]} 19. Be5 {[%emt 0:00:02]} g4 $1 {[%emt 0:00:00]} 20. hxg4 {[%emt 0:01:01]} Bxg4 {[%emt 0:00:00] ...Bh3 is the strong threat.} 21. f3 {[%emt 0:00:01]} Bh5 {[%emt 0:00:00]} 22. Kf2 {[%emt 0:00:46]} (22. Re2 $15) 22... Bd6 {[%emt 0:00:00] Strongly threatening ...Bxe5.} 23. Bxd6 {[%emt 0:00:08][%mdl 8192]} (23. Rh1 $1 $15) 23... Qxd6 $19 {[%emt 0:00:00]} 24. Nf1 {[%emt 0:00:01] Against Qg3+} (24. Kg1 Rxg2+ 25. Kxg2 Qg3+ 26. Kh1 Bxf3+ 27. Nxf3 Qxf3+ 28. Kg1 Qg3+ 29. Kf1) 24... Qf8 {[%emt 0:00:00]} (24... h3 $142 25. gxh3 Ne4+ $1 {[%mdl 512]} 26. Bxe4 dxe4) 25. Re2 {[%emt 0:01:44][%cal Be1e2,Be2f2,Bf2f1][%mdl 32]} Qg7 {[%emt 0:00:00]} 26. Ke1 {[%emt 0:00:02]} Ne4 {[%emt 0:00:00] Inhibits Rf2.} 27. Bd1 $2 {[%emt 0:01:40]} (27. Bxe4 dxe4 28. Rf2) 27... Ng3 {[%emt 0:00:00]} 28. Rf2 {[%emt 0:00:17]} e5 {[%emt 0:00:00]} 29. Nxg3 {[%emt 0:06:26]} (29. e4 $142 h3 30. exd5) 29... hxg3 $2 {[%emt 0:01:35]} (29... Qxg3 $19 {has better winning chances.} 30. dxe5 h3 31. gxh3 Qh4) 30. Rf1 $17 {[%emt 0:00:00]} Re6 $36 {[%emt 0:00:00][%mdl 2048] Black has strong initiative. 0x0.00222dc622dddp-1022s more active pieces. The white rooks are badly placed.} 31. Qd2 {[%emt 0:00:00] [#]} (31. dxe5 $17 {is a better defense.} Qxe5 32. f4 Qxe3+ 33. Qxe3 Rxe3+ 34. Kd2 Rd3+ 35. Kc2) 31... exd4 $1 $19 {[%emt 0:00:00]} 32. cxd4 {[%emt 0:00:00]} Kd7 {[%emt 0:00:00] Threatens to win with ...Rge8.} 33. f4 $2 {[%emt 0:00:00][%mdl 8192] [#]} (33. Bc2 $17 Bg6 34. Kd1) 33... Rge8 $1 {[%emt 0:00:00]} 34. Rf3 {[%emt 0:00:00]} (34. Bxh5 Rxe3+) 34... Bxf3 {[%emt 0:00:00] Black mates.} 35. Bxf3 {[%emt 0:00:00]} Rxe3+ {[%emt 0:00:00]} 36. Kf1 {[%emt 0:00:00]} Qh6 {[%emt 0:00:00] Weighted Error Value: White=0.91/Black=0.48} 0-1